bitfinex-derivatives/quotes_BTCF0:USTF0_20250614
["timestamp","ask_amount","ask_price","bid_price","bid_amount"]
[1749860821819,0.34,105820.0,105810.0,2.13649987]
[1749860823012,0.39906324,105820.0,105810.0,2.13649987]
[1749860823614,0.39913226,105820.0,105810.0,2.13649987]
[1749860823821,0.39906324,105820.0,105810.0,2.13649987]
[1749860825224,0.39913141,105820.0,105810.0,2.13649987]
[1749860825418,0.47459231,105820.0,105810.0,2.13649987]
[1749860825613,0.47450122,105820.0,105810.0,2.13649987]
[1749860827312,0.53622375,105820.0,105810.0,2.13649987]
[1749860827719,0.47863957,105820.0,105810.0,2.13649987]
[1749860828316,0.47863957,105820.0,105810.0,2.12973987]
[1749860829125,0.47863957,105820.0,105810.0,1.87901987]
[1749860829323,0.53636691,105820.0,105810.0,1.87901987]
[1749860829518,0.47863957,105820.0,105810.0,1.87901987]
[1749860830319,0.47450122,105820.0,105810.0,1.87901987]
[1749860831725,0.59061022,105820.0,105810.0,1.87901987]
[1749860832424,0.47450122,105820.0,105810.0,1.87901987]
[1749860832625,0.59061022,105820.0,105810.0,1.87901987]
[1749860833523,0.47450122,105820.0,105810.0,1.87901987]
[1749860834326,0.2013042,105830.0,105820.0,0.1889076]
[1749860834532,0.08977593,105830.0,105820.0,0.7545798]
[1749860834831,0.08977593,105830.0,105820.0,0.84932707]
[1749860835028,0.08977593,105830.0,105820.0,2.00344707]
[1749860835328,0.08977593,105830.0,105820.0,2.00348707]
[1749860835524,0.15690525,105830.0,105820.0,2.00348707]
[1749860835724,0.16190525,105830.0,105820.0,2.00448707]
[1749860836030,0.16197878,105830.0,105820.0,2.00448707]
[1749860836219,0.16199634,105830.0,105820.0,2.00448707]
[1749860836424,0.16190525,105830.0,105820.0,2.00448707]
[1749860836621,0.04,105830.0,105820.0,0.81812707]
[1749860836826,0.07796513,105830.0,105820.0,2.69247107]
[1749860837026,0.42320525,105830.0,105820.0,2.66047107]
[1749860837427,0.3033,105830.0,105820.0,2.66247107]
[1749860837627,0.8529898,105830.0,105820.0,1.14935107]
[1749860837824,0.5866998,105830.0,105820.0,1.14935107]
[1749860838025,0.5866998,105830.0,105820.0,2.30139107]
[1749860838329,0.5866998,105830.0,105820.0,2.25416567]
[1749860838526,0.5866998,105830.0,105820.0,2.61496567]
[1749860838727,0.39781,105830.0,105820.0,2.25416567]
[1749860838932,0.39781,105830.0,105820.0,2.61496567]
[1749860839133,0.39781,105830.0,105820.0,2.61512567]
[1749860839733,0.39781,105830.0,105820.0,2.61452567]
[1749860840436,0.39781,105830.0,105820.0,2.25372567]
[1749860840731,0.47487783,105830.0,105820.0,2.61452567]
[1749860841034,0.47478674,105830.0,105820.0,2.61452567]
[1749860842028,0.47478674,105830.0,105820.0,1.46292567]
[1749860842228,0.47478674,105830.0,105820.0,2.61236567]
[1749860842428,0.66367674,105830.0,105820.0,1.46292567]
[1749860842629,0.66367674,105830.0,105820.0,2.61204567]
[1749860843030,0.66367674,105830.0,105820.0,1.46292567]
[1749860843337,0.47478674,105830.0,105820.0,2.61072567]
[1749860843534,0.62153439,105830.0,105820.0,2.61072567]
[1749860844134,0.62153439,105830.0,105820.0,2.60897694]
[1749860844832,0.62153439,105830.0,105820.0,1.46117694]
[1749860845037,0.62153439,105830.0,105820.0,2.60737694]
[1749860845338,0.62253439,105830.0,105820.0,2.60837694]
[1749860846338,0.62253439,105830.0,105820.0,2.66733978]
[1749860846545,0.62253439,105830.0,105820.0,2.75578404]
[1749860846546,1.80463674,105830.0,105820.0,2.75578404]
[1749860847436,1.60245,105830.0,105820.0,2.72630263]
[1749860847626,1.60245,105830.0,105820.0,2.75950263]
[1749860847627,2.91463,105830.0,105820.0,2.75950263]
[1749860848532,2.8723773,105830.0,105820.0,2.75950263]
[1749860848736,2.8723773,105830.0,105820.0,2.79080263]
[1749860849535,2.8182949,105830.0,105820.0,2.82028405]
[1749860850440,2.7078211,105830.0,105820.0,2.86147067]
[1749860850637,2.84303,105830.0,105820.0,2.86147067]
[1749860850941,2.7080957,105830.0,105820.0,2.86147067]
[1749860851139,2.6713306,105830.0,105820.0,2.86147067]
[1749860851538,2.6382151,105830.0,105820.0,2.86447787]
[1749860852136,2.610482,105830.0,105820.0,2.86447787]
[1749860852331,2.5448971,105830.0,105820.0,2.86447787]
[1749860852941,2.5126429,105830.0,105820.0,2.86447787]
[1749860853141,2.4775234,105830.0,105820.0,2.86447787]
[1749860853542,1.2857856,105830.0,105820.0,2.92948924]
[1749860853744,1.2857856,105830.0,105820.0,2.95897387]
[1749860853745,0.6813376,105830.0,105820.0,2.95897387]
[1749860854043,0.2801571,105830.0,105820.0,2.95897387]
[1749860854245,0.1980438,105830.0,105820.0,2.95897387]
[1749860854542,0.1670491,105830.0,105820.0,2.91778725]
[1749860854746,0.1378039,105830.0,105820.0,2.91778725]
[1749860855532,0.1378039,105830.0,105820.0,3.12357978]
[1749860855735,0.1378039,105830.0,105820.0,2.91778725]
[1749860855931,0.1100827,105830.0,105820.0,2.91778725]
[1749860856141,0.00014185,105840.0,105830.0,0.1888901]
[1749860856345,0.10014185,105840.0,105830.0,0.75046343]
[1749860857339,0.10014185,105840.0,105830.0,0.75146343]
[1749860857543,0.10414185,105840.0,105830.0,0.78100365]
[1749860857845,0.10722071,105840.0,105830.0,0.78100365]
[1749860858044,0.1072203,105840.0,105830.0,0.78100365]
[1749860858341,0.10414185,105840.0,105830.0,0.79100365]
[1749860859140,0.10414185,105840.0,105830.0,0.76139888]
[1749860860343,0.10214185,105840.0,105830.0,0.77639888]
[1749860863541,0.10223294,105840.0,105830.0,0.77639888]
[1749860863742,0.00221353,105840.0,105830.0,0.77639888]
[1749860863945,0.00214185,105840.0,105830.0,0.80639888]
[1749860864144,0.00214185,105840.0,105830.0,0.79639888]
[1749860864443,0.0304,105850.0,105830.0,0.89088688]
[1749860864649,0.0306,105860.0,105850.0,0.1888545]
[1749860864939,0.0306,105860.0,105850.0,0.68603789]
[1749860864940,0.2306,105860.0,105850.0,0.68603789]
[1749860865154,0.0306,105860.0,105850.0,0.75163789]
[1749860865442,0.0306,105860.0,105850.0,1.08610989]
[1749860865646,0.0306,105860.0,105850.0,0.96830755]
[1749860866039,0.0306,105860.0,105850.0,0.87383555]
[1749860867237,0.0326,105860.0,105850.0,0.96203598]
[1749860867444,0.03268421,105860.0,105850.0,0.96203598]
[1749860867645,0.0326,105860.0,105850.0,0.96203598]
[1749860867949,0.0316,105860.0,105850.0,0.97403598]
[1749860868246,0.0326,105860.0,105850.0,0.99003598]
[1749860868637,0.03269109,105860.0,105850.0,0.99003598]
[1749860868842,0.03266802,105860.0,105850.0,0.99003598]
[1749860869046,0.0326,105860.0,105850.0,0.99003598]
[1749860871251,0.0643,105860.0,105850.0,0.99003598]
[1749860877249,0.0643,105860.0,105850.0,0.99028725]
[1749860877448,0.06439109,105860.0,105850.0,0.99028725]
[1749860878043,0.0643,105860.0,105850.0,0.99028725]
[1749860879648,0.0643,105860.0,105850.0,0.90208682]
[1749860880655,0.10725733,105870.0,105850.0,0.83103466]
[1749860880847,0.10593811,105900.0,105860.0,2.55084428]
[1749860881049,0.09436866,105900.0,105890.0,0.5495831]
[1749860881254,0.16887866,105900.0,105890.0,2.5364633]
[1749860881455,0.16887866,105900.0,105890.0,2.63941771]
[1749860881651,0.16887866,105900.0,105890.0,2.83966898]
[1749860881956,0.00014185,105910.0,105900.0,0.1887653]
[1749860882155,0.28339935,105910.0,105900.0,1.00276192]
[1749860882451,0.09465185,105910.0,105900.0,1.00276192]
[1749860883057,0.28339935,105910.0,105900.0,1.00276192]
[1749860883260,0.28339935,105910.0,105900.0,2.09852192]
[1749860883460,0.28339935,105910.0,105900.0,2.09740192]
[1749860883648,0.28339935,105910.0,105900.0,1.00376192]
[1749860883848,0.15865185,105910.0,105900.0,2.04257499]
[1749860884059,0.18885185,105910.0,105900.0,2.04257499]
[1749860884860,0.37759935,105910.0,105900.0,2.04257499]
[1749860885257,0.18885185,105910.0,105900.0,2.04257499]
[1749860886557,0.37759935,105910.0,105900.0,0.63208969]
[1749860886760,0.37759935,105910.0,105900.0,0.37713499]
[1749860887057,0.37759935,105910.0,105890.0,0.10294535]
[1749860887058,0.1887653,105900.0,105890.0,0.10294535]
[1749860887261,0.7076753,105900.0,105890.0,1.2787231]
[1749860887458,0.7076753,105900.0,105890.0,2.0982231]
[1749860887660,0.1887831,105890.0,105880.0,0.34614122]
[1749860887859,0.3468931,105890.0,105880.0,2.29538122]
[1749860888054,0.3468931,105890.0,105880.0,1.48226122]
[1749860888255,0.3468931,105890.0,105880.0,2.25486122]
[1749860888461,0.3468931,105890.0,105880.0,1.19226122]
[1749860888761,0.3468931,105890.0,105880.0,2.55462122]
[1749860889760,0.3478931,105890.0,105880.0,2.57362122]
[1749860889955,0.3498931,105890.0,105880.0,2.58562122]
[1749860890263,0.3498931,105890.0,105880.0,2.54722222]
[1749860890561,0.3810931,105890.0,105880.0,2.54722222]
[1749860890762,0.3810931,105890.0,105880.0,1.45606222]
[1749860890963,0.3810931,105890.0,105880.0,1.18606222]
[1749860891365,0.3810931,105890.0,105880.0,2.27622222]
[1749860892158,0.3810931,105890.0,105880.0,2.27550222]
[1749860892363,0.7418931,105890.0,105880.0,0.88726185]
[1749860892558,0.3810931,105890.0,105880.0,0.25994285]
[1749860892753,0.3810931,105890.0,105880.0,2.16554285]
[1749860893767,0.3810931,105890.0,105880.0,1.07606285]
[1749860893959,0.7418931,105890.0,105880.0,2.16490285]
[1749860894461,0.7418931,105890.0,105880.0,1.97610185]
[1749860894863,0.3810931,105890.0,105880.0,1.97610185]
[1749860895062,0.38343646,105890.0,105880.0,1.97610185]
[1749860895264,0.74423646,105890.0,105880.0,1.97518185]
[1749860895465,0.38343646,105890.0,105880.0,1.97518185]
[1749860895662,0.74423646,105890.0,105880.0,1.97518185]
[1749860897367,0.74423646,105890.0,105880.0,2.16398275]
[1749860898468,0.74423646,105890.0,105880.0,2.12398275]
[1749860898658,0.74423646,105890.0,105880.0,2.16810117]
[1749860899072,0.74423646,105890.0,105880.0,2.12398275]
[1749860899265,0.7443232,105890.0,105880.0,2.12398275]
[1749860899467,0.74423646,105890.0,105880.0,2.12398275]
[1749860899665,0.7443142,105890.0,105880.0,2.12398275]
[1749860899860,0.74423646,105890.0,105880.0,2.12398275]
[1749860901874,0.74423646,105890.0,105880.0,2.16810117]
[1749860904576,0.74430395,105890.0,105880.0,2.16810117]
[1749860904769,0.74432755,105890.0,105880.0,2.16810117]
[1749860904970,0.74423646,105890.0,105880.0,2.16810117]
[1749860905271,0.75423646,105890.0,105880.0,0.03114185]
[1749860905573,0.75423646,105890.0,105880.0,0.87846185]
[1749860905574,0.99551254,105890.0,105880.0,0.87846185]
[1749860905876,0.99551254,105890.0,105880.0,0.03114185]
[1749860906080,1.24551254,105890.0,105880.0,0.03114185]
[1749860906370,0.1888187,105870.0,105860.0,0.81612]
[1749860906578,0.61298685,105870.0,105860.0,0.4137167]
[1749860906782,0.70808685,105870.0,105860.0,0.4137167]
[1749860906985,0.70808685,105870.0,105860.0,1.2607567]
[1749860907879,0.70908685,105870.0,105860.0,1.2607567]
[1749860908281,0.72708685,105870.0,105860.0,1.2627567]
[1749860908988,0.72708685,105870.0,105860.0,1.2612367]
[1749860909286,0.72708685,105870.0,105860.0,0.002]
[1749860909490,1.14652775,105870.0,105860.0,0.84712]
[1749860909683,1.43234285,105870.0,105860.0,0.002]
[1749860910185,1.18234285,105870.0,105860.0,0.002]
[1749860910385,1.18234285,105870.0,105860.0,0.00225127]
[1749860910581,1.24098375,105870.0,105860.0,0.00225127]
[1749860910787,1.18234285,105870.0,105860.0,0.00225127]
[1749860911086,1.18243394,105870.0,105860.0,0.00225127]
[1749860911290,1.18241397,105870.0,105860.0,0.00225127]
[1749860911484,1.18234285,105870.0,105860.0,0.00225127]
[1749860911688,1.18234285,105870.0,105860.0,0.19108787]
[1749860911892,1.05728685,105870.0,105860.0,0.19108787]
[1749860912089,1.05728685,105870.0,105860.0,0.22218787]
[1749860914888,0.99278685,105870.0,105860.0,0.22218787]
[1749860915094,0.63198685,105870.0,105860.0,0.25518787]
[1749860915291,0.27118685,105870.0,105860.0,0.61598787]
[1749860915490,0.2078187,105870.0,105860.0,0.25932622]
[1749860915697,0.27118685,105870.0,105860.0,0.25932622]
[1749860916388,0.27118685,105870.0,105860.0,0.61598787]
[1749860916596,0.27127794,105870.0,105860.0,0.61598787]
[1749860916799,0.27118685,105870.0,105860.0,0.61598787]
[1749860916988,0.27127794,105870.0,105860.0,0.61598787]
[1749860917189,0.27118685,105870.0,105860.0,0.61598787]
[1749860921594,0.27118685,105870.0,105860.0,0.62012622]
[1749860922696,0.27118685,105870.0,105860.0,0.66424464]
[1749860922891,0.08236815,105870.0,105860.0,0.66424464]
[1749860923096,0.27118695,105870.0,105860.0,0.66424464]
[1749860923502,0.27118695,105870.0,105860.0,0.66010629]
[1749860923704,0.27118695,105870.0,105860.0,0.29930629]
[1749860923894,0.27118695,105870.0,105860.0,0.66010629]
[1749860925998,0.27125678,105870.0,105860.0,0.66010629]
[1749860926206,0.27126785,105870.0,105860.0,0.66010629]
[1749860926506,0.27118695,105870.0,105860.0,0.66010629]
[1749860927203,0.27127804,105870.0,105860.0,0.66010629]
[1749860927404,0.27118695,105870.0,105860.0,0.66010629]
[1749860928596,0.27118695,105870.0,105860.0,0.71893322]
[1749860929098,0.27118695,105870.0,105860.0,0.29342969]
[1749860929099,0.63198695,105870.0,105860.0,0.29342969]
[1749860929299,0.69748695,105870.0,105860.0,0.21821127]
[1749860929509,0.72878695,105870.0,105860.0,0.21821127]
[1749860929903,0.82324295,105870.0,105860.0,0.00225127]
[1749860930102,1.22188385,105870.0,105860.0,0.00225127]
[1749860930397,1.30997572,105870.0,105860.0,0.00225127]
[1749860931008,1.52593572,105870.0,105860.0,0.00225127]
[1749860931505,1.52602681,105870.0,105860.0,0.00225127]
[1749860932109,1.52593572,105870.0,105860.0,0.00225127]
[1749860933404,1.46729482,105870.0,105860.0,0.00225127]
[1749860933610,1.52596095,105870.0,105860.0,0.00225127]
[1749860935105,1.43150495,105870.0,105860.0,0.00225127]
[1749860936405,1.37291905,105870.0,105860.0,0.00225127]
[1749860936711,1.37283882,105870.0,105860.0,0.00225127]
[1749860936913,1.43152823,105870.0,105860.0,0.00225127]
[1749860937904,1.37283882,105870.0,105860.0,0.00225127]
[1749860943713,2.20291882,105870.0,105860.0,0.00225127]
[1749860944318,2.26158778,105870.0,105860.0,0.00225127]
[1749860944611,0.87554778,105870.0,105860.0,0.19108797]
[1749860944816,0.87554778,105870.0,105860.0,0.00225127]
[1749860945018,0.87554778,105870.0,105860.0,0.00638962]
[1749860945412,1.25554778,105870.0,105860.0,0.00638962]
[1749860946009,1.25554778,105870.0,105860.0,0.00225127]
[1749860949718,1.19687882,105870.0,105860.0,7e-08]
[1749860949915,1.22633226,105870.0,105860.0,7e-08]
[1749860950116,1.22633386,105870.0,105860.0,7e-08]
[1749860950310,1.22624277,105870.0,105860.0,7e-08]
[1749860953623,1.22630977,105870.0,105860.0,7e-08]
[1749860953825,1.22624277,105870.0,105860.0,7e-08]
[1749860954912,1.22624277,105870.0,105860.0,1e-08]
[1749860955110,0.1888366,105860.0,105850.0,0.03314185]
[1749860955313,1.10480937,105860.0,105850.0,0.03314185]
[1749860956025,1.10480937,105860.0,105850.0,0.00014185]
[1749860956729,0.76480937,105860.0,105850.0,0.14014185]
[1749860957022,1.08480937,105860.0,105850.0,0.00014185]
[1749860958017,1.08880937,105860.0,105850.0,0.03214185]
[1749860958218,1.08880937,105860.0,105850.0,0.03414185]
[1749860958424,1.18000857,105860.0,105850.0,0.03414185]
[1749860958622,1.14940857,105860.0,105850.0,0.03414185]
[1749860958823,1.12840857,105860.0,105850.0,0.03214185]
[1749860959018,1.15240857,105860.0,105850.0,0.03414185]
[1749860959727,1.15249609,105860.0,105850.0,0.03414185]
[1749860959925,1.15240857,105860.0,105850.0,0.03414185]
[1749860960127,1.15240857,105860.0,105850.0,0.0382802]
[1749860960327,0.83249966,105860.0,105850.0,0.0382802]
[1749860960627,0.83240857,105860.0,105850.0,0.0382802]
[1749860961029,0.83240857,105860.0,105850.0,0.0687802]
[1749860961230,0.83240857,105860.0,105850.0,0.06464185]
[1749860961929,0.74440395,105860.0,105850.0,0.06464185]
[1749860962116,0.74440395,105860.0,105850.0,0.0687802]
[1749860962524,0.86185977,105860.0,105850.0,0.0687802]
[1749860963721,0.92185977,105860.0,105850.0,0.0687802]
[1749860963927,0.86185977,105860.0,105850.0,0.0687802]
[1749860964128,1.19185977,105860.0,105850.0,0.0687802]
[1749860964627,1.19193554,105860.0,105850.0,0.0687802]
[1749860964931,1.19185977,105860.0,105850.0,0.0687802]
[1749860965228,1.19194111,105860.0,105850.0,0.0687802]
[1749860965426,1.19185977,105860.0,105850.0,0.0687802]
[1749860966428,1.27994365,105860.0,105850.0,0.0687802]
[1749860967026,1.39141977,105860.0,105850.0,0.05141134]
[1749860967334,1.46341977,105860.0,105850.0,0.0131425]
[1749860967518,1.46341977,105860.0,105830.0,0.36719448]
[1749860967519,0.1888723,105840.0,105830.0,0.36719448]
[1749860967723,1.03255977,105840.0,105830.0,0.51190537]
[1749860968132,1.12063875,105840.0,105830.0,0.51190537]
[1749860968332,1.03255977,105840.0,105830.0,0.51190537]
[1749860968723,1.03355977,105840.0,105830.0,0.51190537]
[1749860968924,1.03655977,105840.0,105830.0,0.51290537]
[1749860969735,0.67575977,105840.0,105830.0,0.51290537]
[1749860969930,0.61704045,105840.0,105830.0,0.55708468]
[1749860970130,0.61712329,105840.0,105830.0,0.55708468]
[1749860970325,0.61712727,105840.0,105830.0,0.55708468]
[1749860970534,0.61712489,105840.0,105830.0,0.55708468]
[1749860970836,0.6208437,105840.0,105830.0,0.55708468]
[1749860973029,0.19667555,105840.0,105830.0,0.55708468]
[1749860973238,0.55747555,105840.0,105830.0,0.61599043]
[1749860973632,0.19667555,105840.0,105830.0,0.61599043]
[1749860973934,0.1928723,105840.0,105830.0,0.61599043]
[1749860974336,0.1928723,105840.0,105830.0,0.62012878]
[1749860975037,0.19294769,105840.0,105830.0,0.62012878]
[1749860975228,0.19294605,105840.0,105830.0,0.62012878]
[1749860975432,0.1928723,105840.0,105830.0,0.62012878]
[1749860976539,0.1928723,105840.0,105830.0,0.60167361]
[1749860977728,0.1928723,105840.0,105830.0,0.5574943]
[1749860977933,0.19296339,105840.0,105830.0,0.5574943]
[1749860978134,0.19296027,105840.0,105830.0,0.5574943]
[1749860978336,0.19296339,105840.0,105830.0,1.3760143]
[1749860978539,0.61704045,105840.0,105830.0,0.1590441]
[1749860978738,0.61704045,105840.0,105830.0,0.39217443]
[1749860978935,0.61713154,105840.0,105830.0,0.41288433]
[1749860979138,0.70825086,105840.0,105830.0,0.14437858]
[1749860979335,0.70815977,105840.0,105830.0,0.34984023]
[1749860979531,0.70823531,105840.0,105830.0,0.36329613]
[1749860979839,0.70815977,105840.0,105830.0,0.36329613]
[1749860980039,0.70815977,105840.0,105830.0,0.3632962]
[1749860980241,0.70815977,105840.0,105830.0,0.36329621]
[1749860980842,0.70815977,105840.0,105830.0,0.55218641]
[1749860981142,0.25159162,105840.0,105830.0,1.38525197]
[1749860981336,0.5536723,105840.0,105830.0,1.42525197]
[1749860981535,0.5536723,105840.0,105830.0,1.41179595]
[1749860981743,0.5536723,105840.0,105830.0,1.42514503]
[1749860981942,0.5536723,105840.0,105830.0,1.45057186]
[1749860982243,0.5536723,105840.0,105830.0,1.43580607]
[1749860982439,0.5536723,105840.0,105830.0,1.44405546]
[1749860982636,0.5536723,105840.0,105830.0,1.45471024]
[1749860983144,0.5536723,105840.0,105830.0,1.44405545]
[1749860983338,0.5536723,105840.0,105830.0,1.44405546]
[1749860983636,0.55376339,105840.0,105830.0,1.45470765]
[1749860983839,0.55376339,105840.0,105830.0,1.4292871]
[1749860984040,0.55374986,105840.0,105830.0,1.45470829]
[1749860984241,0.5536723,105840.0,105830.0,1.43070008]
[1749860984541,0.5536723,105840.0,105830.0,1.44135486]
[1749860984742,0.5536723,105840.0,105830.0,1.45470828]
[1749860984940,0.5536723,105840.0,105830.0,1.454753]
[1749860985239,0.19294307,105840.0,105830.0,1.4547093]
[1749860985444,0.19295845,105840.0,105830.0,1.4546957]
[1749860985639,0.1928723,105840.0,105830.0,1.44136626]
[1749860985839,0.1928723,105840.0,105830.0,1.44402427]
[1749860986038,0.1928723,105840.0,105830.0,1.45469111]
[1749860986542,0.1928723,105840.0,105830.0,1.45469112]
[1749860986940,0.1928723,105840.0,105830.0,1.4413664]
[1749860987139,0.1928723,105840.0,105830.0,1.45469187]
[1749860987343,0.1928723,105840.0,105830.0,1.4159343]
[1749860987540,0.1928723,105840.0,105830.0,1.4399266]
[1749860987736,0.1928723,105840.0,105830.0,1.44402507]
[1749860987932,0.1928723,105840.0,105830.0,1.43992661]
[1749860988442,0.004,105840.0,105830.0,1.88897429]
[1749860988646,0.00014185,105850.0,105840.0,0.1888723]
[1749860988848,0.00014185,105850.0,105840.0,1.65822538]
[1749860989046,0.00014185,105850.0,105840.0,1.91451527]
[1749860989345,0.00014185,105850.0,105840.0,2.00899519]
[1749860989747,0.00014185,105850.0,105840.0,1.97961546]
[1749860990051,0.02214185,105850.0,105840.0,2.1127197]
[1749860990242,0.02214185,105850.0,105840.0,2.11271976]
[1749860990547,0.02223294,105850.0,105840.0,2.10202668]
[1749860990738,0.02214185,105850.0,105840.0,1.99491742]
[1749860991046,0.02214185,105850.0,105840.0,1.99491746]
[1749860991244,0.02214185,105850.0,105840.0,1.99488957]
[1749860991444,0.02214185,105850.0,105840.0,2.03748742]
[1749860991750,0.02214185,105850.0,105840.0,2.11899623]
[1749860991951,0.02214185,105850.0,105840.0,2.12968742]
[1749860992145,0.02214185,105850.0,105840.0,2.02656059]
[1749860992343,0.02214185,105850.0,105840.0,2.02810627]
[1749860992544,0.02214185,105850.0,105840.0,2.04131814]
[1749860992750,0.02214185,105850.0,105840.0,2.1296622]
[1749860992951,0.02214185,105850.0,105840.0,2.12966221]
[1749860993246,0.02214185,105850.0,105840.0,2.00112058]
[1749860993443,0.02214185,105850.0,105840.0,1.99861053]
[1749860993648,0.02214185,105850.0,105840.0,1.99701403]
[1749860993945,0.02214185,105850.0,105840.0,1.99861053]
[1749860994141,0.02214185,105850.0,105840.0,1.97319288]
[1749860994346,0.02214185,105850.0,105840.0,1.99701404]
[1749860994548,0.02214185,105850.0,105840.0,2.31017614]
[1749860994749,0.02214185,105850.0,105840.0,2.29952059]
[1749860995045,0.02214185,105850.0,105840.0,2.29700284]
[1749860995352,0.02214185,105850.0,105840.0,2.28220772]
[1749860995539,0.02214185,105850.0,105840.0,2.29696982]
[1749860996347,0.02214185,105850.0,105840.0,2.28220773]
[1749860996547,0.02214185,105850.0,105840.0,2.29696984]
[1749860996745,0.02214185,105850.0,105840.0,2.28220773]
[1749860996945,0.02214185,105850.0,105840.0,2.29696984]
[1749860997145,0.02214185,105850.0,105840.0,2.33419748]
[1749860997351,0.02214185,105850.0,105840.0,2.31943537]
[1749860997545,0.02214185,105850.0,105840.0,2.32355808]
[1749860997744,0.02214185,105850.0,105840.0,2.33417293]
[1749860997944,0.02214185,105850.0,105840.0,2.32355808]
[1749860998146,0.02214185,105850.0,105840.0,2.22907808]
[1749860998446,0.02214185,105850.0,105840.0,2.23969293]
[1749860998750,0.02214185,105850.0,105840.0,2.21434052]
[1749860998952,0.02223294,105850.0,105840.0,2.23969293]
[1749860999141,0.02223294,105850.0,105840.0,2.22907808]
[1749860999347,0.02214185,105850.0,105840.0,2.22495537]
[1749860999542,0.02223237,105850.0,105840.0,2.22907808]
[1749860999749,0.02223294,105850.0,105840.0,2.23969293]
[1749860999952,0.02214185,105850.0,105840.0,2.23969293]
[1749861000151,0.02223294,105850.0,105840.0,2.28380206]
[1749861000452,0.02214185,105850.0,105840.0,2.30224091]
[1749861000953,0.02214185,105850.0,105840.0,2.30224559]
[1749861001255,0.02214185,105850.0,105840.0,2.24339883]
[1749861001446,0.02214185,105850.0,105840.0,2.2433987]
[1749861001647,0.02214185,105850.0,105840.0,2.24339869]
[1749861002342,0.02214185,105850.0,105840.0,2.22865658]
[1749861002857,0.02214185,105850.0,105840.0,2.23279134]
[1749861003047,0.02214185,105850.0,105840.0,2.24339869]
[1749861003447,0.21099635,105850.0,105840.0,2.43480263]
[1749861003642,0.21099635,105850.0,105840.0,3.30780921]
[1749861003845,0.27444601,105850.0,105840.0,1.98790664]
[1749861004041,0.27444601,105850.0,105840.0,2.67764468]
[1749861004042,0.3134645,105850.0,105840.0,2.67764468]
[1749861004260,0.3504645,105850.0,105840.0,1.42521474]
[1749861004447,0.7112645,105850.0,105840.0,2.19612867]
[1749861004750,0.3504645,105850.0,105840.0,2.23471416]
[1749861004948,0.3504645,105850.0,105840.0,2.2240806]
[1749861005156,0.3504645,105850.0,105840.0,2.21996725]
[1749861005350,0.3504645,105850.0,105840.0,2.23469559]
[1749861005551,0.3504645,105850.0,105840.0,2.23469563]
[1749861005747,0.3504645,105850.0,105840.0,1.20061806]
[1749861006053,0.35053511,105850.0,105840.0,2.23429238]
[1749861006253,0.35053511,105850.0,105840.0,2.23429031]
[1749861006254,0.35054193,105850.0,105840.0,2.23429031]
[1749861006454,0.3504645,105850.0,105840.0,2.20896108]
[1749861006758,0.3504645,105850.0,105840.0,2.22368243]
[1749861006958,0.3504645,105850.0,105840.0,1.21385042]
[1749861007154,0.08551,105850.0,105840.0,1.20324242]
[1749861007453,0.02214185,105850.0,105840.0,2.6667564]
[1749861007658,0.02214185,105850.0,105840.0,3.04194307]
[1749861007867,0.02214185,105850.0,105840.0,3.04194297]
[1749861008154,0.02214185,105850.0,105840.0,3.05501353]
[1749861008351,0.02214185,105850.0,105840.0,3.02968533]
[1749861008547,0.02214185,105850.0,105840.0,3.05511811]
[1749861008756,0.02214185,105850.0,105840.0,3.05516553]
[1749861008956,0.02214185,105850.0,105840.0,3.04451056]
[1749861009161,0.02214185,105850.0,105840.0,2.98318521]
[1749861009457,0.02214185,105850.0,105840.0,2.98318502]
[1749861009659,0.02214185,105850.0,105840.0,2.98318501]
[1749861009859,0.02214185,105850.0,105840.0,2.983185]
[1749861010055,0.02214185,105850.0,105840.0,2.95776816]
[1749861010362,0.02214185,105850.0,105840.0,2.98318499]
[1749861010560,0.02222049,105850.0,105840.0,2.98318499]
[1749861010748,0.02223294,105850.0,105840.0,2.98318499]
[1749861010952,0.02223294,105850.0,105840.0,2.97253018]
[1749861011159,0.02223294,105850.0,105840.0,3.10098733]
[1749861011360,0.02223294,105850.0,105840.0,3.01264327]
[1749861011553,0.02223111,105850.0,105840.0,3.01264327]
[1749861011749,0.02214185,105850.0,105840.0,3.01264327]
[1749861011956,0.02214185,105850.0,105840.0,3.04205831]
[1749861012759,0.02214185,105850.0,105840.0,2.98317137]
[1749861013260,0.02214185,105850.0,105840.0,2.97251656]
[1749861013456,0.02214185,105850.0,105840.0,2.95775453]
[1749861013655,0.02214185,105850.0,105840.0,2.96840934]
[1749861013855,0.02214185,105850.0,105840.0,2.98317136]
[1749861014263,0.02214185,105850.0,105840.0,2.97251655]
[1749861014465,0.02221517,105850.0,105840.0,2.98316922]
[1749861014764,0.02214185,105850.0,105840.0,2.97251654]
[1749861014951,0.02214185,105850.0,105840.0,2.98316919]
[1749861015354,0.02214185,105850.0,105840.0,2.97251654]
[1749861015555,0.02214185,105850.0,105840.0,2.98316919]
[1749861016164,0.08807898,105880.0,105870.0,0.1888187]
[1749861016460,0.37036905,105880.0,105870.0,2.44869596]
[1749861016763,0.37036905,105880.0,105870.0,2.49289264]
[1749861016958,0.37036905,105880.0,105870.0,2.46748088]
[1749861017162,0.37036905,105880.0,105870.0,2.49289261]
[1749861017565,0.37036905,105880.0,105870.0,2.47813277]
[1749861017759,0.39336905,105880.0,105870.0,2.48013277]
[1749861017959,0.39336905,105880.0,105870.0,2.46948088]
[1749861018165,0.40036905,105880.0,105870.0,2.49589261]
[1749861018659,0.40036905,105880.0,105870.0,2.49836141]
[1749861018855,0.40036905,105880.0,105870.0,2.47048088]
[1749861019059,0.40036905,105880.0,105870.0,2.49590273]
[1749861019464,0.40036905,105880.0,105870.0,2.49590271]
[1749861019666,0.40036905,105880.0,105870.0,2.50904697]
[1749861020171,0.40036905,105880.0,105870.0,2.5090235]
[1749861020671,0.76116905,105880.0,105870.0,1.11883923]
[1749861020869,0.76116905,105880.0,105870.0,2.12412078]
[1749861021064,0.40036905,105880.0,105870.0,2.14788944]
[1749861021369,0.76116905,105880.0,105870.0,2.1225089]
[1749861021565,0.76126014,105880.0,105870.0,2.12253199]
[1749861021864,0.76116905,105880.0,105870.0,2.12253345]
[1749861022070,0.76116905,105880.0,105870.0,2.08895191]
[1749861022271,0.76116905,105880.0,105870.0,2.08895197]
[1749861022472,0.76116905,105880.0,105870.0,2.08895078]
[1749861022765,0.76116905,105880.0,105870.0,2.08856875]
[1749861022961,0.76116905,105880.0,105870.0,2.08853264]
[1749861023166,0.76116905,105880.0,105870.0,2.08851712]
[1749861023364,0.76116905,105880.0,105870.0,2.07789631]
[1749861023563,0.53376815,105880.0,105870.0,2.11954394]
[1749861023771,0.49416815,105880.0,105870.0,2.25281589]
[1749861023967,0.49416815,105880.0,105870.0,2.2397161]
[1749861024268,0.68296915,105880.0,105870.0,2.23971602]
[1749861024770,0.68296915,105880.0,105870.0,2.22912098]
[1749861025164,0.68296915,105880.0,105870.0,2.23971109]
[1749861025562,0.68296915,105880.0,105870.0,2.22912098]
[1749861025772,0.68296915,105880.0,105870.0,2.2397111]
[1749861025968,0.03,105880.0,105870.0,2.6005111]